bitfinex-derivatives/quotes_ETHF0:USTF0_20250224
["timestamp","ask_amount","ask_price","bid_price","bid_amount"]
[1740373058995,0.00554662,2702.9,2702.7,0.73997]
[1740373060383,0.00554662,2702.9,2702.8,3.94775]
[1740373060589,0.00554662,2702.9,2702.8,3.96496127]
[1740373061190,0.00554662,2702.9,2702.8,0.01721127]
[1740373061891,0.00554662,2702.9,2702.8,0.75716127]
[1740373062591,0.00554662,2702.9,2702.8,0.01721127]
[1740373063094,0.00554662,2702.9,2702.0,21.7962]
[1740373063288,3.2078,2702.7,2702.0,21.7962]
[1740373063792,3.2078,2702.4,2701.6,3.2078]
[1740373063988,3.2078,2702.4,2701.7,2.804]
[1740373064189,3.2078,2702.1,2701.6,3.2078]
[1740373064492,3.2078,2702.1,2701.4,1.1574]
[1740373065390,3.2078,2702.1,2701.5,0.7403]
[1740373065687,3.2078,2702.4,2701.5,0.74031]
[1740373065895,3.2078,2702.1,2701.4,1.1574]
[1740373066292,3.2078,2702.4,2701.7,0.74025]
[1740373066493,6.0108,2702.4,2701.9,0.74018]
[1740373066694,3.2078,2702.4,2701.6,6.0108]
[1740373066889,1.2288,2702.6,2701.6,6.0108]
[1740373067089,3.2078,2702.4,2701.6,3.2078]
[1740373067288,3.2078,2702.1,2701.5,0.74031]
[1740373067490,3.2078,2702.1,2701.4,3.07903]
[1740373067691,3.2078,2702.1,2701.4,2.3387]
[1740373068086,3.2078,2702.1,2701.4,1.1574]
[1740373068494,3.2078,2702.1,2701.4,1.89771]
[1740373068697,3.2078,2702.1,2701.4,1.1574]
[1740373068997,2.804,2702.4,2701.8,0.74023]
[1740373069295,2.804,2702.4,2701.4,1.1574]
[1740373069296,3.2078,2702.3,2701.4,1.1574]
[1740373069496,3.2078,2702.3,2701.6,0.74027]
[1740373070103,3.2078,2702.3,2701.7,0.74025]
[1740373070396,3.2078,2702.3,2701.6,3.2078]
[1740373070587,1.2288,2702.6,2701.6,3.2078]
[1740373070791,1.2288,2702.6,2702.1,0.74013]
[1740373071390,1.2288,2702.6,2702.0,3.2078]
[1740373071597,3.2078,2702.7,2702.4,0.74005]
[1740373071797,3.2078,2702.7,2702.5,0.74003]
[1740373072093,3.2078,2702.7,2702.1,3.27314]
[1740373072599,3.2078,2702.7,2702.1,1.2566]
[1740373072797,4.4217,2702.7,2702.1,1.2566]
[1740373072993,4.4217,2702.7,2702.0,2.803]
[1740373073494,4.4217,2702.7,2701.7,3.2078]
[1740373073687,4.4217,2702.7,2701.9,0.7402]
[1740373074295,3.2078,2702.4,2701.7,3.2078]
[1740373074497,3.2078,2702.4,2701.7,6.0108]
[1740373075096,3.2078,2702.4,2701.8,0.74023]
[1740373075297,7.2247,2702.7,2701.9,0.74018]
[1740373076295,7.2247,2702.7,2701.9,0.7402]
[1740373076502,7.2247,2702.7,2701.8,3.2078]
[1740373076803,7.2247,2702.7,2702.1,0.74013]
[1740373076996,4.4217,2702.7,2702.2,0.74012]
[1740373077301,4.4217,2702.7,2702.2,0.74011]
[1740373077501,4.4217,2702.7,2702.1,3.2078]
[1740373077703,3.2078,2702.7,2702.4,0.74005]
[1740373078193,3.2078,2702.7,2702.3,0.74007]
[1740373078398,3.2078,2702.7,2702.1,3.2078]
[1740373078602,3.2078,2702.7,2702.3,0.74008]
[1740373078799,3.2078,2702.7,2702.2,0.74011]
[1740373079001,3.2078,2702.7,2702.0,3.69415]
[1740373079200,3.2078,2702.7,2702.0,2.954]
[1740373079400,3.2078,2702.7,2702.3,0.74008]
[1740373079992,1.1982,2702.8,2702.2,2.802]
[1740373080202,1.1982,2702.8,2702.4,0.74004]
[1740373080899,1.1982,2702.8,2702.3,1.215]
[1740373081099,0.00554662,2702.9,2702.3,1.215]
[1740373081291,0.00554662,2702.9,2702.8,0.73995]
[1740373081602,0.00554662,2702.9,2702.7,0.73997]
[1740373081798,0.00554662,2702.9,2702.3,6.40839]
[1740373081996,0.00554662,2702.9,2702.4,2.802]
[1740373082197,1.23994662,2702.9,2702.4,2.802]
[1740373082504,1.23994662,2702.9,2702.5,0.74002]
[1740373083004,1.23994662,2702.9,2702.3,5.6683]
[1740373083199,2.42854662,2702.9,2702.3,4.4228]
[1740373083409,2.42854662,2702.9,2701.4,1.85078]
[1740373083410,3.2078,2702.7,2702.1,2.802]
[1740373084099,3.58354662,2702.9,2702.2,3.2078]
[1740373084301,2.42854662,2702.9,2702.6,0.73999]
[1740373084701,0.00554662,2702.9,2702.8,0.73995]
[1740373086400,0.00554662,2702.9,2702.7,0.73998]
[1740373086601,0.00554662,2702.9,2702.6,6.0098]
[1740373087001,0.00554662,2702.9,2702.6,3.2078]
[1740373087508,0.00554662,2702.9,2702.5,1.2446]
[1740373088206,0.00554662,2702.9,2702.6,0.74]
[1740373088402,0.00554662,2702.9,2702.5,1.2446]
[1740373088707,0.00554662,2702.9,2702.5,1.98462]
[1740373089006,0.00554662,2702.9,2702.6,0.74]
[1740373089908,0.00554662,2702.9,2702.5,1.2446]
[1740373090204,0.00554662,2702.9,2702.6,0.73998]
[1740373090600,0.00554662,2702.9,2702.5,1.2446]
[1740373091302,3.2078,2702.6,2701.8,6.90202]
[1740373091499,3.2078,2702.6,2701.8,3.94802]
[1740373091500,1.2342,2702.5,2701.8,3.94802]
[1740373091702,1.2342,2702.5,2701.8,3.2078]
[1740373092101,3.2078,2702.4,2701.8,3.2078]
[1740373092606,3.2078,2702.4,2701.6,1.97308]
[1740373092607,3.2078,2702.3,2701.6,1.2328]
[1740373092802,3.2078,2702.3,2701.6,4.0328]
[1740373093001,3.2078,2702.3,2701.7,0.74024]
[1740373093506,3.2078,2702.3,2701.6,7.98087]
[1740373093708,3.2078,2702.3,2701.6,7.2406]
[1740373094010,3.2078,2702.3,2701.8,0.74021]
[1740373094309,3.2078,2702.3,2701.7,0.74024]
[1740373094818,3.2078,2702.3,2701.6,7.98087]
[1740373095004,3.2078,2702.3,2701.6,7.2406]
[1740373095308,3.2078,2702.3,2701.7,0.74025]
[1740373095700,3.2078,2702.3,2701.8,0.74023]
[1740373096203,3.2078,2702.3,2701.7,0.74024]
[1740373096602,3.2078,2702.3,2701.9,3.2078]
[1740373098307,3.2078,2702.3,2701.9,3.94799]
[1740373098615,1.51702401,2702.5,2701.9,3.94799]
[1740373098815,1.2342,2702.5,2702.0,0.74016]
[1740373098998,1.1735,2702.8,2702.2,3.2078]
[1740373099206,0.00554662,2702.9,2702.8,0.73995]
[1740373099404,0.00554662,2702.9,2702.5,3.2078]
[1740373099604,0.00554662,2702.9,2702.5,3.94783]
[1740373100011,0.00554662,2702.9,2702.5,3.2078]
[1740373100307,0.00554662,2702.9,2702.4,2.954]
[1740373100703,0.00554662,2702.9,2702.5,0.74002]
[1740373101309,0.00554662,2702.9,2702.4,2.954]
[1740373102211,0.00554662,2702.9,2702.4,3.69405]
[1740373102613,0.00554662,2702.9,2702.6,0.73999]
[1740373102811,0.00554662,2702.9,2702.7,0.73997]
[1740373103114,0.00554662,2702.9,2702.6,0.73999]
[1740373103315,0.00554662,2702.9,2702.7,0.73997]
[1740373103713,0.00554662,2702.9,2702.4,4.1908]
[1740373104321,0.00554662,2702.9,2702.7,0.73997]
[1740373105010,0.00554662,2702.9,2702.6,3.2078]
[1740373105508,0.00554662,2702.9,2702.7,0.73996]
[1740373105713,0.00554662,2702.9,2702.6,3.94779]
[1740373106712,0.00554662,2702.9,2702.6,3.2078]
[1740373106918,0.00554662,2702.9,2702.5,3.2078]
[1740373107417,0.00554662,2702.9,2702.4,0.74005]
[1740373107608,0.00554662,2702.9,2702.3,0.74007]
[1740373107813,3.2078,2702.7,2701.9,0.7402]
[1740373108011,3.2078,2702.7,2701.8,6.0068]
[1740373108217,3.2078,2702.7,2702.3,0.74008]
[1740373108415,0.00554662,2702.9,2702.1,3.2078]
[1740373108715,0.00554662,2702.9,2702.4,0.74005]
[1740373109120,0.00554662,2702.9,2702.4,0.74006]
[1740373109320,0.00554662,2702.9,2702.5,0.74002]
[1740373109520,0.00554662,2702.9,2702.4,0.74005]
[1740373110120,0.00554662,2702.9,2702.3,3.9624]
[1740373111320,3.21334662,2702.9,2702.2,1.98672]
[1740373111716,3.21334662,2702.9,2702.2,1.2466]
[1740373112225,3.21334662,2702.9,2702.1,3.2078]
[1740373113021,3.21334662,2702.9,2702.1,3.94794]
[1740373113222,2.798,2702.8,2702.1,3.2078]
[1740373113427,2.798,2702.8,2702.1,3.94794]
[1740373113919,2.798,2702.8,2702.2,0.74011]
[1740373114225,2.798,2702.8,2702.1,3.2078]
[1740373114419,2.798,2702.8,2702.2,0.74012]
[1740373116220,2.798,2702.8,2702.1,3.2078]
[1740373116623,2.798,2702.8,2702.2,0.74011]
[1740373116813,2.798,2702.8,2702.1,3.94793]
[1740373117225,2.798,2702.8,2702.1,3.2078]
[1740373117722,3.21334662,2702.9,2702.1,3.2078]
[1740373118220,3.21334662,2702.9,2702.4,0.74005]
[1740373118428,3.21334662,2702.9,2702.2,1.1841]
[1740373118621,3.21334662,2702.9,2702.5,0.74001]
[1740373118816,3.21334662,2702.9,2702.2,1.1841]
[1740373119022,3.21334662,2702.9,2702.4,3.2078]
[1740373119228,3.21334662,2702.9,2702.5,1.1532]
[1740373119524,3.21334662,2702.9,2702.6,0.74]
[1740373119728,3.21334662,2702.9,2702.5,2.3708]
[1740373120324,3.21334662,2702.9,2702.6,0.74001]
[1740373120724,3.21334662,2702.9,2702.5,2.3708]
[1740373120725,3.21334662,2702.9,2702.7,0.73997]
[1740373120934,3.21334662,2702.9,2702.8,0.73995]
[1740373121229,3.21334662,2702.9,2702.7,0.73997]
[1740373121523,3.21334662,2702.9,2702.6,0.73999]
[1740373122430,3.21334662,2702.9,2702.5,2.3708]
[1740373122629,3.21334662,2702.9,2702.6,0.74001]
[1740373123330,3.21334662,2702.9,2702.7,0.73998]
[1740373123629,0.00554662,2702.9,2702.6,0.74]
[1740373123830,0.00554662,2702.9,2702.5,2.3708]
[1740373124029,0.00554662,2702.9,2702.7,0.73997]
[1740373124723,0.00554662,2702.9,2702.5,2.3708]
[1740373124927,0.00554662,2702.9,2702.6,0.74]
[1740373125328,0.00554662,2702.9,2702.5,3.11082]
[1740373126627,0.00554662,2702.9,2702.6,2.796]
[1740373127224,0.00554662,2702.9,2702.8,0.73995]
[1740373128120,0.72444118,2703.3,2702.8,3.2078]
[1740373128330,0.72444118,2703.3,2703.2,0.73984]
[1740373128728,0.72444118,2703.9,2703.2,2.4364]
[1740373128928,0.72444118,2703.9,2703.5,0.73974]
[1740373129135,0.72444118,2703.9,2703.8,0.73968]
[1740373129632,0.00554662,2704.0,2703.9,0.73965]
[1740373129833,0.00554662,2704.0,2703.9,1.91595]
[1740373130931,0.00554662,2704.0,2703.9,1.1763]
[1740373131234,12.06920404,2704.0,2702.6,0.00554662]
[1740373131429,3.2078,2703.7,2702.7,3.2078]
[1740373131736,3.2078,2703.4,2702.6,0.00554662]
[1740373131935,1.2584,2703.3,2702.6,0.00554662]
[1740373132125,2.4799,2703.3,2702.6,0.00554662]
[1740373132622,2.4799,2703.3,2702.6,0.74554662]
[1740373132825,2.4799,2703.3,2702.6,0.00554662]
[1740373133629,2.4799,2703.3,2702.6,0.74554662]
[1740373133826,2.4799,2703.3,2702.6,0.00554662]
[1740373134331,2.4799,2703.3,2702.6,0.74553662]
[1740373134531,3.6632,2703.3,2702.7,3.2078]
[1740373135130,3.6632,2703.3,2702.8,0.73995]
[1740373135729,3.6632,2703.3,2702.7,3.2078]
[1740373136136,3.6632,2703.3,2702.7,3.94778]
[1740373136331,3.6632,2703.3,2702.7,3.2078]
[1740373136930,3.6632,2703.3,2702.7,3.94778]
[1740373137330,3.6632,2703.3,2702.7,3.2078]
[1740373140638,3.6632,2703.3,2702.7,3.94778]
[1740373140838,3.6632,2703.3,2702.7,3.2078]
[1740373141040,3.6632,2703.3,2702.7,3.94777]
[1740373141536,3.6632,2703.3,2702.7,3.2078]
[1740373141728,2.4048,2703.3,2702.7,3.94777]
[1740373142330,2.4048,2703.3,2702.7,3.2078]
[1740373143241,2.4048,2703.3,2702.7,3.94778]
[1740373143442,2.4048,2703.3,2702.8,0.73995]
[1740373143741,2.4048,2703.3,2702.7,3.94777]
[1740373144045,3.6678,2703.3,2702.7,3.94777]
[1740373144232,3.6678,2703.3,2702.7,3.2078]
[1740373144738,3.6678,2703.3,2702.7,3.94777]
[1740373145137,3.48946876,2703.4,2702.7,3.2078]
[1740373145339,3.48946876,2703.4,2702.8,0.73995]
[1740373145537,3.2078,2703.1,2702.6,0.00554662]
[1740373145735,2.4204,2703.0,2702.6,0.00554662]
[1740373146041,2.4204,2703.0,2702.8,0.73994]
[1740373146234,2.4204,2703.0,2702.6,0.74553662]
[1740373146536,2.4204,2703.0,2702.6,0.00554662]
[1740373147435,3.2078,2702.7,2702.6,0.00554662]
[1740373155040,2.4204,2703.0,2702.6,0.00554662]
[1740373155041,5.6282,2703.0,2702.6,0.00554662]
[1740373155241,8.4202,2703.0,2702.6,0.00554662]
[1740373156047,3.2078,2702.8,2702.6,0.00554662]
[1740373157044,5.9998,2702.8,2702.6,0.00554662]
[1740373160253,0.71726945,2702.7,2702.6,0.00554662]
[1740373160453,0.77830682,2702.7,2702.6,0.00554662]
[1740373160653,0.71726945,2702.7,2702.6,0.00554662]
[1740373163459,5.9998,2702.8,2702.6,0.00554662]
[1740373163651,3.2078,2702.8,2702.6,0.00554662]
[1740373163856,5.9988,2702.8,2702.6,0.00554662]
[1740373165859,0.71793158,2702.7,2702.6,0.00554662]
[1740373169464,5.9988,2702.8,2702.6,0.00554662]
[1740373171257,3.2078,2702.8,2702.6,0.00554662]
[1740373173369,2.79,2702.7,2702.6,0.00554662]
[1740373173670,2.79,2702.7,2701.9,2.4678]
[1740373173869,3.2078,2702.3,2701.9,2.4678]
[1740373174465,3.2078,2702.3,2700.4,3.2078]
[1740373174466,3.2078,2702.0,2700.4,3.2078]
[1740373174766,3.2078,2701.6,2700.9,1.196]
[1740373174965,2.79554662,2701.5,2701.0,1.2509]
[1740373175262,2.79554662,2701.5,2700.1,3.2078]
[1740373175263,3.2078,2701.3,2700.1,3.2078]
[1740373175463,3.2078,2701.3,2700.5,2.3539]
[1740373175666,3.2078,2701.3,2700.5,3.09448]
[1740373175968,3.2078,2701.3,2700.5,2.3539]
[1740373176171,3.2078,2701.3,2700.5,3.09448]
[1740373176473,3.2078,2701.3,2700.5,2.3539]
[1740373176767,3.2078,2701.3,2700.5,3.09447]
[1740373177070,3.2078,2701.3,2700.5,2.3539]
[1740373177373,3.2078,2701.3,2700.5,3.09447]
[1740373177571,3.2078,2701.3,2700.6,0.74056]
[1740373178169,3.2078,2701.3,2700.5,2.3539]
[1740373178370,3.2078,2701.3,2700.6,0.74056]
[1740373178869,3.2078,2701.3,2700.5,2.3539]
[1740373179172,1.21044662,2701.5,2700.7,3.2078]
[1740373179380,0.00554662,2701.5,2701.2,0.74038]
[1740373179871,0.00554662,2701.5,2701.3,1.2029]
[1740373180666,0.00554662,2701.5,2701.3,1.94325]
[1740373180874,0.00554662,2701.5,2701.4,0.74034]
[1740373181070,0.00554662,2701.5,2701.4,3.06544]
[1740373182071,0.00554662,2701.5,2701.4,2.3251]
[1740373184476,0.00554662,2701.5,2701.4,1.1592]
[1740373184673,0.00554662,2701.5,2700.7,3.2078]
[1740373184874,3.2078,2701.3,2700.7,3.2078]
[1740373185469,3.2078,2701.3,2700.7,3.94832]
[1740373185669,3.2078,2701.3,2700.7,3.2078]
[1740373185868,3.2078,2701.3,2700.7,3.94832]
[1740373186775,3.2078,2701.3,2700.7,3.2078]
[1740373187073,0.00554662,2701.5,2701.0,3.2078]
[1740373187276,0.00554662,2701.5,2701.1,3.7069]
[1740373187479,0.00554662,2701.5,2701.3,0.74035]
[1740373187972,0.00554662,2701.5,2701.1,3.7069]
[1740373187973,0.00554662,2701.5,2701.4,0.74034]
[1740373188778,0.00554662,2701.5,2701.1,3.7069]
[1740373188978,0.00554662,2701.5,2701.4,0.74034]
[1740373190173,0.00554662,2701.5,2701.3,3.2078]
[1740373190372,0.00554662,2701.5,2701.1,3.7069]
[1740373190568,0.00554662,2701.5,2701.2,0.74038]
[1740373191074,0.00554662,2701.5,2701.1,4.44729]
[1740373191275,0.00554662,2701.5,2701.1,3.7069]
[1740373191574,0.00554662,2701.5,2701.4,0.74034]
[1740373191975,0.00554662,2701.5,2701.1,3.7069]
[1740373192179,0.00554662,2701.5,2701.4,0.74034]
[1740373192674,1.2657,2702.4,2701.4,8.788]
[1740373192873,3.2078,2702.6,2701.4,8.788]
[1740373192874,5.9958,2702.6,2702.1,0.74013]
[1740373193173,3.2078,2702.6,2701.8,3.2078]
[1740373193372,3.2078,2702.6,2702.0,0.74016]
[1740373193877,3.21334662,2702.6,2702.0,0.74570662]
[1740373194175,3.21334662,2702.6,2702.0,0.00554662]
[1740373194476,3.2078,2702.3,2702.0,0.00554662]
[1740373194676,1.231,2702.2,2702.0,0.00554662]
[1740373194882,2.4346,2702.2,2702.0,0.00554662]
[1740373199079,1.231,2702.2,2702.0,0.00554662]
[1740373201176,1.1738,2702.1,2702.0,0.00554662]
[1740373201684,2.3808,2702.1,2702.0,0.00554662]
[1740373202477,2.3808,2702.1,2701.2,1.18]
[1740373202679,3.2078,2701.7,2701.2,1.18]
[1740373202874,1.207,2701.6,2701.1,0.74041]
[1740373203081,1.207,2701.6,2701.0,3.2078]
[1740373203579,1.207,2701.6,2701.0,3.5067564]
[1740373203785,1.207,2702.1,2701.6,0.74027]
[1740373203983,1.207,2702.0,2701.6,3.2078]
[1740373204179,3.2078,2702.2,2701.9,0.7402]
[1740373204379,3.2078,2702.2,2701.7,3.11934]
[1740373204594,3.2078,2702.2,2701.7,1.2133]
[1740373205185,3.2078,2702.2,2701.5,6.1618]
[1740373205587,3.2078,2702.2,2701.5,2.954]
[1740373205785,1.2363,2702.1,2701.5,2.954]
[1740373205987,3.2078,2701.9,2701.2,3.2078]
[1740373206289,5.171,2701.8,2701.0,0.74043]
[1740373206590,5.171,2701.8,2701.0,3.94823]
[1740373206783,5.171,2701.8,2701.0,3.2078]
[1740373207083,5.171,2701.8,2701.0,3.94823]
[1740373207289,3.2078,2701.5,2700.8,2.4776]
[1740373207484,1.1707,2701.4,2700.8,2.4776]
[1740373207891,1.1707,2701.4,2700.8,3.21809]
[1740373208086,1.1707,2701.4,2700.7,3.2078]
[1740373208583,8.3788,2701.8,2700.8,0.74049]
[1740373208784,3.2078,2701.5,2700.7,3.94831]
[1740373208982,3.2078,2701.5,2700.7,3.2078]
[1740373209581,1.1707,2701.7,2700.5,4.43488]
[1740373209582,3.2078,2700.9,2700.5,2.4495]
[1740373209782,3.2078,2700.9,2700.1,3.2078]
[1740373209990,3.6919,2700.8,2700.1,3.2078]
[1740373210290,3.69744662,2700.8,2700.1,3.2078]
[1740373213284,3.2078,2700.6,2699.8,6.8428]
[1740373213586,3.2078,2700.3,2699.6,0.74083]
[1740373213888,2.4364,2700.2,2699.8,3.2078]
[1740373214394,3.6715,2700.2,2699.6,0.74081]
[1740373214586,3.6715,2700.2,2699.4,3.2078]
[1740373214788,2.786,2700.1,2699.4,3.2078]
[1740373214984,2.786,2700.1,2699.5,0.74084]
[1740373215188,2.786,2700.1,2699.4,3.2078]
[1740373215890,3.6715,2700.2,2699.4,3.2078]
[1740373216093,3.6715,2700.2,2699.9,0.74073]
[1740373216094,2.786,2700.1,2699.9,0.74073]
[1740373216593,3.6715,2700.2,2699.9,0.74073]
[1740373217696,0.00554662,2700.8,2699.2,2.15311847]
[1740373217697,0.00554662,2700.8,2700.0,3.2078]
[1740373217891,1.23854662,2700.8,2700.2,0.74064]
[1740373218190,1.5812,2700.7,2700.2,0.74064]
[1740373218400,1.5812,2700.7,2700.1,3.6934]
[1740373218692,1.5812,2700.7,2700.1,4.43408]
[1740373218893,1.5812,2700.7,2700.0,0.74069]
[1740373219087,3.2078,2700.5,2699.9,3.2078]
[1740373219492,3.2078,2700.5,2700.2,0.74065]
[1740373219891,1.4811,2700.6,2700.5,0.74058]
[1740373220085,1.4811,2700.6,2700.5,3.94838]
[1740373220791,1.4811,2700.6,2700.5,3.2078]
[1740373221093,1.4811,2700.6,2700.5,3.94838]
[1740373221285,1.4811,2700.6,2700.4,3.5266]
[1740373221493,1.4811,2700.6,2700.1,3.2078]
[1740373221789,2.6855,2700.6,2700.1,3.2078]
[1740373221988,2.6855,2700.6,2700.5,0.74058]
[1740373222203,2.6855,2700.6,2700.1,3.2078]
[1740373222398,2.6855,2700.6,2700.3,0.74062]
[1740373222694,2.6855,2700.6,2700.4,0.74061]
[1740373222894,2.6855,2700.6,2700.5,0.74058]
[1740373223094,2.6855,2700.6,2700.4,0.7406]
[1740373223296,2.6855,2700.6,2700.1,3.2078]
[1740373223893,1.2511,2700.5,2700.1,3.94848]
[1740373224201,1.2511,2700.5,2700.1,3.2078]
[1740373225195,1.2511,2700.5,2700.1,3.94848]
[1740373225499,1.4001,2700.5,2700.1,3.2078]
[1740373226392,2.2807,2700.5,2700.1,3.2078]
[1740373226592,3.1613,2700.5,2700.1,3.2078]
[1740373227092,3.1613,2700.5,2700.1,3.94848]
[1740373227393,3.1613,2700.5,2700.0,0.74071]
[1740373227601,3.2078,2700.2,2699.6,3.2078]
[1740373227800,4.0183,2700.1,2699.6,3.2078]
[1740373227998,1.163,2700.0,2699.6,3.2078]
[1740373228699,1.2459,2699.9,2699.6,3.2078]
[1740373229689,4.4537,2699.9,2699.3,4.3843]
[1740373230095,4.4537,2699.9,2699.3,3.2078]
[1740373230296,4.4537,2699.9,2699.1,1.2016]
[1740373230500,3.2078,2699.6,2698.7,5.5501]
[1740373230696,1.2333,2699.5,2698.7,6.7517]
[1740373230892,1.1641,2699.4,2698.7,6.7517]
[1740373231202,0.005557,2699.4,2699.3,0.74091]
[1740373231397,0.005557,2699.4,2699.3,3.94871]
[1740373231700,0.005557,2699.4,2699.3,0.74091]
[1740373232098,0.005557,2699.4,2699.3,6.39731]
[1740373233705,0.4248,2700.0,2699.9,0.74075]
[1740373234007,0.4248,2700.0,2699.6,2.785]
[1740373234605,0.4248,2700.0,2699.8,0.74077]
[1740373235005,0.4248,2700.0,2699.8,0.74076]
[1740373235197,0.4248,2700.0,2699.6,3.52581]
[1740373235708,0.4248,2700.0,2699.8,0.74076]
[1740373236108,0.4248,2700.0,2699.9,0.74075]
[1740373236303,0.4248,2700.0,2699.9,3.19735]
[1740373236803,0.4248,2700.0,2699.9,4.38245]
[1740373237107,0.4248,2700.0,2699.9,1.2424]
[1740373237311,0.4248,2700.0,2699.7,3.2078]
[1740373237604,0.4248,2700.0,2699.8,0.74076]
[1740373237802,0.4248,2700.0,2699.7,3.2078]
[1740373238502,0.4248,2700.0,2699.8,0.74076]
[1740373239107,0.4248,2700.0,2699.9,0.74075]
[1740373239304,1e-05,2700.0,2699.9,0.74075]
[1740373239511,1.0296,2700.5,2700.4,0.74061]
[1740373239714,1.0296,2700.5,2700.4,3.94841]
[1740373240605,1.0296,2700.5,2700.4,5.11441]
[1740373242107,1.0296,2700.5,2700.4,5.13137734]
[1740373243407,1e-08,2700.6,2700.5,0.74058]
[1740373243710,2.783,2702.0,2700.8,0.7405]
[1740373244013,9.6061,2702.2,2701.5,0.7403]
[1740373244211,3.2078,2701.9,2701.8,0.01696734]
[1740373244912,0.005557,2702.1,2701.8,0.01696734]
[1740373245309,3.2078,2702.0,2701.9,0.01696734]
[1740373246011,9.2078,2702.0,2701.9,0.01696734]
[1740373246710,9.2078,2702.0,2701.6,0.005557]
[1740373246915,3.2078,2701.7,2701.6,0.005557]
[1740373247413,2.782,2701.8,2701.3,3.2078]
[1740373247613,3.2078,2702.0,2701.1,1.942]
[1740373247816,5.9898,2702.0,2701.1,4.4094]
[1740373248113,5.9898,2702.0,2701.4,0.74033]
[1740373248313,5.9898,2702.0,2701.1,4.4094]
[1740373248513,5.9898,2702.0,2701.5,0.74031]
[1740373248712,5.9898,2702.0,2701.4,0.005557]
[1740373249106,5.9898,2702.0,2701.4,0.745897]
[1740373249409,5.9898,2702.0,2701.5,0.7403]
[1740373249613,5.9898,2702.0,2701.4,0.005557]
[1740373250111,3.2078,2702.0,2701.4,3.213357]
[1740373250309,0.005557,2702.1,2701.7,3.2078]
[1740373250514,0.005557,2702.1,2702.0,3.94797]
[1740373251213,10.05680355,2703.4,2702.0,9.4992005]
[1740373251420,2.357,2703.3,2703.0,0.73988]
[1740373251617,6.84900355,2703.4,2702.8,3.2078]
[1740373251912,6.84900355,2703.4,2702.7,2.781]
[1740373252106,6.84900355,2703.4,2702.7,5.9888]
[1740373252310,0.005557,2703.3,2702.9,0.73993]
[1740373252513,0.005557,2703.3,2702.8,0.005557]
[1740373252716,0.005557,2703.3,2703.1,0.73986]
[1740373252920,0.005557,2703.3,2702.8,1.255557]
[1740373253110,0.005557,2703.3,2702.8,5.203287]
[1740373253417,0.005557,2703.3,2702.8,7.983307]
[1740373253624,0.005557,2703.3,2702.8,7.243357]
[1740373253818,0.005557,2703.3,2702.8,4.463357]
[1740373254018,1.226757,2703.3,2702.8,0.005557]
[1740373254517,1.3174,2703.2,2702.8,0.005557]
[1740373255015,1.3174,2703.2,2702.8,0.745497]
[1740373255211,1.3174,2703.2,2702.8,0.005557]
[1740373255519,1.3174,2703.2,2703.1,0.73987]
[1740373256513,1.3174,2703.2,2703.0,3.2078]
[1740373256709,1.3174,2703.2,2703.1,0.73987]
[1740373257311,1.3174,2703.2,2703.1,3.51887]
[1740373258722,1.3174,2703.2,2703.0,3.2078]
[1740373259325,1.3174,2703.2,2702.9,0.73993]
[1740373259522,1.3174,2703.2,2702.9,3.51893]
[1740373259728,1.3174,2703.2,2702.9,2.779]
[1740373259927,1.3174,2703.2,2703.0,0.7399]
[1740373260114,1.3174,2703.2,2702.9,2.779]
[1740373260621,1.3174,2703.2,2702.8,0.005557]
[1740373261119,3.7587,2703.2,2702.9,0.73992]
[1740373261318,3.7587,2703.2,2702.8,0.005557]
[1740373262224,3.2078,2703.1,2702.8,0.005557]
[1740373262525,4.3736,2703.1,2701.7,3.07913931]
[1740373262725,3.2078,2702.5,2701.8,3.2078]
[1740373263022,3.2078,2701.9,2701.3,20.535]
[1740373263224,3.2078,2701.9,2701.2,6.72619]
[1740373263423,3.2078,2701.9,2701.2,5.9858]
[1740373263615,3.2078,2701.6,2701.3,0.005557]
[1740373263822,5.9858,2701.6,2701.3,0.005557]
[1740373264328,1.2511,2701.5,2700.5,2.954]
[1740373264521,1.2511,2701.5,2700.1,6.72648]
[1740373264522,3.2078,2701.0,2700.1,6.72648]
[1740373264831,3.2078,2700.7,2699.8,3.2078]
[1740373265023,3.2078,2700.7,2699.8,3.94855]
[1740373265223,2.778,2700.6,2699.8,3.94855]
[1740373265423,2.778,2700.6,2699.8,3.2078]
[1740373265623,3.2078,2700.4,2700.0,0.005557]
[1740373265819,4.0291,2700.6,2700.0,0.005557]
[1740373266029,3.2078,2700.3,2700.0,0.005557]
[1740373266522,2.778,2700.2,2699.2,7.1656]
[1740373266922,2.778,2700.2,2699.2,5.9858]
[1740373267322,2.778,2700.2,2699.4,0.74088]
[1740373267523,2.778,2700.2,2699.3,3.2078]
[1740373267824,2.778,2700.2,2699.4,0.74088]
[1740373268025,2.778,2700.2,2699.4,0.74086]
[1740373268629,2.778,2700.2,2699.4,0.74089]
[1740373268934,3.2078,2700.3,2699.6,0.74081]
[1740373269126,3.2078,2700.3,2699.4,0.74087]
[1740373269325,3.2078,2700.3,2699.3,3.2078]
[1740373270129,0.005557,2700.4,2699.6,3.2078]
[1740373270327,0.005557,2700.4,2700.3,0.74064]
[1740373270728,0.005557,2700.4,2700.3,0.75760521]
[1740373271227,0.005557,2700.4,2700.3,41.55760521]
[1740373271434,0.005557,2700.4,2700.3,40.81696521]
[1740373271932,0.005557,2700.4,2700.3,0.01696521]
[1740373272135,0.005557,2700.4,2700.3,0.75760521]
[1740373272340,0.005557,2700.4,2700.3,44.76540521]
[1740373272521,0.005557,2700.4,2700.3,0.01696521]
[1740373272721,2.783557,2700.4,2700.3,0.01696521]